DEPARTMENT FAMILY,ENTITY,DATE,EXPENSE TYPE,EXPENSE AREA,SUPPLIER,TRANSACTION NUMBER,AMOUNT,DESCRIPTION
DEPARTMENT OF HEALTH,BLACKPOOL TEACHING HOSPITALS NHS FT,04-Jun-14,COMPUTER SOFTWARE / LICENSE  FEES,HR & OD,ALLOCATE SOFTWARE PLC,5131768,"44,549.60","FURNITURE, OFFICE AND COMPUTER EQUIPMENT"
DEPARTMENT OF HEALTH,BLACKPOOL TEACHING HOSPITALS NHS FT,11-Jun-14,OTHER CLINICAL COSTS,CARDIAC,ARMSTRONG MEDICAL LTD,5133742,"27,033.60",OTHER CLINICAL SERVICES AND SUPPLIES
DEPARTMENT OF HEALTH,BLACKPOOL TEACHING HOSPITALS NHS FT,30-Jun-14,LABORATORY REAGENTS,PATHOLOGY,BECKMAN COULTER UK,5139162,"30,671.56",LABORATORY EQUIPMENT - PURCHASES
DEPARTMENT OF HEALTH,BLACKPOOL TEACHING HOSPITALS NHS FT,10-Jun-14,LABORATORY REAGENTS,PATHOLOGY,BECKMAN COULTER UK,5133490,"61,343.11",LABORATORY EQUIPMENT - PURCHASES
DEPARTMENT OF HEALTH,BLACKPOOL TEACHING HOSPITALS NHS FT,19-Jun-14,TELEPHONE RENTAL AND CALL CHARGES,ICT,BT TELEPHONE PAYMENT CENTRE,5135768,"25,450.27",TELEPHONES AND COMMUNICATIONS
DEPARTMENT OF HEALTH,BLACKPOOL TEACHING HOSPITALS NHS FT,16-Jun-14,TELEPHONE RENTAL AND CALL CHARGES,ICT,BT TELEPHONE PAYMENT CENTRE,5135274,"71,525.65",TELEPHONES AND COMMUNICATIONS
DEPARTMENT OF HEALTH,BLACKPOOL TEACHING HOSPITALS NHS FT,27-Jun-14,CONTRACT : PHOTOCOPYING RENTAL AND CHARGES,ICT,CANON (UK) LTD,5138642,"47,040.00",EXTERNAL GENERAL SERVICE CONTRACTS
DEPARTMENT OF HEALTH,BLACKPOOL TEACHING HOSPITALS NHS FT,05-Jun-14,COMPUTER MAINTENANCE,ICT,DELL CORPORATION LTD,5132201,"41,837.85","FURNITURE, OFFICE AND COMPUTER EQUIPMENT"
DEPARTMENT OF HEALTH,BLACKPOOL TEACHING HOSPITALS NHS FT,24-Jun-14,COMPUTER MAINTENANCE,ICT,DELL CORPORATION LTD,5137554,"57,148.60","FURNITURE, OFFICE AND COMPUTER EQUIPMENT"
DEPARTMENT OF HEALTH,BLACKPOOL TEACHING HOSPITALS NHS FT,23-Jun-14,EXTERNAL CONSULTANCY FEES,FINANCE,HUNTER HEALTHCARE RESOURCING LTD,5136975,"28,080.00",EXTERNAL CONTRACT STAFFING AND CONSULTANCY
DEPARTMENT OF HEALTH,BLACKPOOL TEACHING HOSPITALS NHS FT,20-Jun-14,COMPUTER MAINTENANCE,ICT,INTEGRATED MEDICAL SOLUTIONS LTD,5136694,"41,958.00",ICT MAINTENANCE SERVICES
DEPARTMENT OF HEALTH,BLACKPOOL TEACHING HOSPITALS NHS FT,24-Jun-14,NON HEALTHCARE SERVICES FROM OTHER NHS BODIES,SPECIALIST MEDICINE,LANCASHIRE TEACHING HOSPITALS NHS FOUNDATION TRUST,5137252,"30,703.00",SERVICES RECEIVED FROM N.H.S. BODIES
DEPARTMENT OF HEALTH,BLACKPOOL TEACHING HOSPITALS NHS FT,03-Jun-14,NON HEALTHCARE SERVICES FROM OTHER NHS BODIES,SPECIALIST MEDICINE,LANCASHIRE TEACHING HOSPITALS NHS FOUNDATION TRUST,5131517,"51,027.00",BOWEL CANCER SCREENING
DEPARTMENT OF HEALTH,BLACKPOOL TEACHING HOSPITALS NHS FT,27-Jun-14,HEALTHCARE FROM INDEPENDENT SECTOR,PHARMACY,LLOYDS PHARMACY LTD,5138650,"42,220.00",PURCHASE OF HEALTH CARE SERVICES
DEPARTMENT OF HEALTH,BLACKPOOL TEACHING HOSPITALS NHS FT,20-Jun-14,BLOOD PRODUCTS,PATHOLOGY,NHS BLOOD AND TRANSPLANT,5136359,"200,417.25",BLOOD PRODUCTS
DEPARTMENT OF HEALTH,BLACKPOOL TEACHING HOSPITALS NHS FT,13-Jun-14,PHARMACY PRESCRIPTIONS,PHARMACY DRUGS INVENTORY,NHS BSA PRESCRIPTION PRICING DIVISION,5135255,"38,393.90",SERVICES RECEIVED FROM N.H.S. BODIES
DEPARTMENT OF HEALTH,BLACKPOOL TEACHING HOSPITALS NHS FT,18-Jun-14,EXTERNAL CONSULTANCY FEES,CHIEF EXECUTIVE,PRICEWATERHOUSECOOPERS LLP_002,5135659,"63,000.00",EXTERNAL CONTRACT STAFFING AND CONSULTANCY
DEPARTMENT OF HEALTH,BLACKPOOL TEACHING HOSPITALS NHS FT,24-Jun-14,MEDICAL AND SURGICAL EQUIPMENT LEASE,SPECIALIST MEDICINE,PURICORE INTERNATIONAL LTD,5137535,"27,710.27",MEDICAL AND SURGICAL EQUIPMENT LEASE
DEPARTMENT OF HEALTH,BLACKPOOL TEACHING HOSPITALS NHS FT,03-Jun-14,MEDICAL AND SURGICAL EQUIPMENT LEASE,SPECIALIST MEDICINE,SIEMENS FINANCIAL SERVICES LTD,5131212,"29,944.59",MEDICAL AND SURGICAL EQUIPMENT LEASE
DEPARTMENT OF HEALTH,BLACKPOOL TEACHING HOSPITALS NHS FT,11-Jun-14,MEDICAL AND SURGICAL EQUIPMENT GENERAL,RADIOLOGY,SIEMENS HEALTHCARE DIAGNOSTICS LTD,5133629,"69,388.00",MEDICAL AND SURGICAL EQUIPMENT GENERAL
DEPARTMENT OF HEALTH,BLACKPOOL TEACHING HOSPITALS NHS FT,05-Jun-14,HEALTHCARE FROM INDEPENDENT SECTOR,SPECIALIST SURGERY,SPIRAL HEALTH CIC,5131989,"125,916.67",PURCHASE OF HEALTH CARE SERVICES
DEPARTMENT OF HEALTH,BLACKPOOL TEACHING HOSPITALS NHS FT,05-Jun-14,HEALTHCARE FROM INDEPENDENT SECTOR,SPECIALIST SURGERY,SPIRAL HEALTH CIC,5131987,"256,555.00",PURCHASE OF HEALTH CARE SERVICES
DEPARTMENT OF HEALTH,BLACKPOOL TEACHING HOSPITALS NHS FT,24-Jun-14,HEALTHCARE FROM INDEPENDENT SECTOR,SPECIALIST SURGERY,UCLAN DENTAL CLINIC LIMITED,5137452,"28,997.00",PURCHASE OF HEALTH CARE SERVICES
DEPARTMENT OF HEALTH,BLACKPOOL TEACHING HOSPITALS NHS FT,24-Jun-14,HEALTHCARE FROM INDEPENDENT SECTOR,SPECIALIST SURGERY,UCLAN DENTAL CLINIC LIMITED,5137453,"33,518.20",PURCHASE OF HEALTH CARE SERVICES
DEPARTMENT OF HEALTH,BLACKPOOL TEACHING HOSPITALS NHS FT,30-Jun-14,PACEMAKERS,CARDIAC,BOSTON SCIENTIFIC LTD,5138992,"43,050.00",APPLIANCES AND IMPLANTS
DEPARTMENT OF HEALTH,BLACKPOOL TEACHING HOSPITALS NHS FT,25-Jun-14,PACEMAKERS,CARDIAC,BOSTON SCIENTIFIC LTD,5137783,"49,368.00",APPLIANCES AND IMPLANTS
DEPARTMENT OF HEALTH,BLACKPOOL TEACHING HOSPITALS NHS FT,27-Jun-14,PACEMAKERS,CARDIAC,MEDTRONIC LTD,5138574,"69,759.00",APPLIANCES AND IMPLANTS
DEPARTMENT OF HEALTH,BLACKPOOL TEACHING HOSPITALS NHS FT,02-Jun-14,PACEMAKERS,CARDIAC,MEDTRONIC LTD,5131012,"120,492.00",APPLIANCES AND IMPLANTS
DEPARTMENT OF HEALTH,BLACKPOOL TEACHING HOSPITALS NHS FT,10-Jun-14,UTILITIES,HARD FM,GAZPROM MARKETING AND TRADING RETAIL LTD,5133541,"81,087.84",GAS
DEPARTMENT OF HEALTH,BLACKPOOL TEACHING HOSPITALS NHS FT,05-Jun-14,UTILITIES,HARD FM,UNITED UTILITIES,5132418,"32,602.74",WATER
DEPARTMENT OF HEALTH,BLACKPOOL TEACHING HOSPITALS NHS FT,09-Jun-14,UTILITIES,HARD FM,NPOWER LTD,5133184,"116,878.04",ELECTRICITY
DEPARTMENT OF HEALTH,BLACKPOOL TEACHING HOSPITALS NHS FT,30-Jun-14,NON HEALTHCARE SERVICES FROM OTHER NHS BODIES,DIVISIONAL MANAGEMENT,NHS PROPERTY SERVICES LTD,5139205,"26,000.68",PROPERTY RENTAL
DEPARTMENT OF HEALTH,BLACKPOOL TEACHING HOSPITALS NHS FT,30-Jun-14,NON HEALTHCARE SERVICES FROM OTHER NHS BODIES,DIVISIONAL MANAGEMENT,NHS PROPERTY SERVICES LTD,5139223,"39,698.00",PROPERTY RENTAL
DEPARTMENT OF HEALTH,BLACKPOOL TEACHING HOSPITALS NHS FT,30-Jun-14,NON HEALTHCARE SERVICES FROM OTHER NHS BODIES,DIVISIONAL MANAGEMENT,NHS PROPERTY SERVICES LTD,5139226,"44,721.00",PROPERTY RENTAL
DEPARTMENT OF HEALTH,BLACKPOOL TEACHING HOSPITALS NHS FT,30-Jun-14,NON HEALTHCARE SERVICES FROM OTHER NHS BODIES,DIVISIONAL MANAGEMENT,NHS PROPERTY SERVICES LTD,5139207,"45,469.18",PROPERTY RENTAL
DEPARTMENT OF HEALTH,BLACKPOOL TEACHING HOSPITALS NHS FT,30-Jun-14,NON HEALTHCARE SERVICES FROM OTHER NHS BODIES,DIVISIONAL MANAGEMENT,NHS PROPERTY SERVICES LTD,5139242,"47,962.00",PROPERTY RENTAL
DEPARTMENT OF HEALTH,BLACKPOOL TEACHING HOSPITALS NHS FT,30-Jun-14,NON HEALTHCARE SERVICES FROM OTHER NHS BODIES,DIVISIONAL MANAGEMENT,NHS PROPERTY SERVICES LTD,5139209,"54,365.23",PROPERTY RENTAL
DEPARTMENT OF HEALTH,BLACKPOOL TEACHING HOSPITALS NHS FT,24-Jun-14,CAPITAL PURCHASES,CAPITAL PURCHASES,WILLMOTT DIXON CONSTRUCTION LTD,5137347,"480,000.43",CAPITAL PURCHASES
DEPARTMENT OF HEALTH,BLACKPOOL TEACHING HOSPITALS NHS FT,17-Jun-14,CAPITAL PURCHASES,CAPITAL PURCHASES,BT IT SERVICES LTD,5135305,"96,000.00",CAPITAL PURCHASES
DEPARTMENT OF HEALTH,BLACKPOOL TEACHING HOSPITALS NHS FT,12-Jun-14,CAPITAL PURCHASES,CAPITAL PURCHASES,GE HEALTHCARE CLINICAL SYSTEMS (UK) LTD_002,5134289,"151,689.60",CAPITAL PURCHASES
DEPARTMENT OF HEALTH,BLACKPOOL TEACHING HOSPITALS NHS FT,16-Jun-14,CAPITAL PURCHASES,CAPITAL PURCHASES,NHS SUPPLY CHAIN,5134724,"615,901.02",CAPITAL PURCHASES
DEPARTMENT OF HEALTH,BLACKPOOL TEACHING HOSPITALS NHS FT,12-Jun-14,CAPITAL PURCHASES,CAPITAL PURCHASES,GE HEALTHCARE CLINICAL SYSTEMS (UK) LTD_002,5134288,"37,922.40",CAPITAL PURCHASES
DEPARTMENT OF HEALTH,BLACKPOOL TEACHING HOSPITALS NHS FT,19-Jun-14,PHARMACY DRUGS INVENTORY,PHARMACY DRUGS INVENTORY,ROCHE PRODUCTS LTD,5136144,"27,531.68",PHARMACY STORES
DEPARTMENT OF HEALTH,BLACKPOOL TEACHING HOSPITALS NHS FT,03-Jun-14,PHARMACY DRUGS INVENTORY,PHARMACY DRUGS INVENTORY,ROCHE PRODUCTS LTD,5131108,"27,957.96",PHARMACY STORES
DEPARTMENT OF HEALTH,BLACKPOOL TEACHING HOSPITALS NHS FT,06-Jun-14,PHARMACY DRUGS INVENTORY,PHARMACY DRUGS INVENTORY,NOVARTIS PHARMACEUTICALS UK LTD,5132461,"29,389.80",PHARMACY STORES
DEPARTMENT OF HEALTH,BLACKPOOL TEACHING HOSPITALS NHS FT,16-Jun-14,PHARMACY DRUGS INVENTORY,PHARMACY DRUGS INVENTORY,ROCHE PRODUCTS LTD,5134708,"35,762.58",PHARMACY STORES
DEPARTMENT OF HEALTH,BLACKPOOL TEACHING HOSPITALS NHS FT,16-Jun-14,PHARMACY DRUGS INVENTORY,PHARMACY DRUGS INVENTORY,NOVARTIS PHARMACEUTICALS UK LTD,5134703,"37,558.49",PHARMACY STORES
DEPARTMENT OF HEALTH,BLACKPOOL TEACHING HOSPITALS NHS FT,11-Jun-14,PHARMACY DRUGS INVENTORY,PHARMACY DRUGS INVENTORY,ROCHE PRODUCTS LTD,5133609,"38,033.32",PHARMACY STORES
DEPARTMENT OF HEALTH,BLACKPOOL TEACHING HOSPITALS NHS FT,26-Jun-14,PHARMACY DRUGS INVENTORY,PHARMACY DRUGS INVENTORY,ROCHE PRODUCTS LTD,5138161,"40,893.16",PHARMACY STORES
DEPARTMENT OF HEALTH,BLACKPOOL TEACHING HOSPITALS NHS FT,24-Jun-14,PHARMACY DRUGS INVENTORY,PHARMACY DRUGS INVENTORY,NOVARTIS PHARMACEUTICALS UK LTD,5137338,"48,196.20",PHARMACY STORES
DEPARTMENT OF HEALTH,BLACKPOOL TEACHING HOSPITALS NHS FT,03-Jun-14,NHS SUPPLY CHAIN CATALOGUE ITEMS,MULTI-DIVISIONAL CHARGE,NHS SUPPLY CHAIN,5131524,"93,600.41",NHS SUPPLY CHAIN CATALOGUE ITEMS
DEPARTMENT OF HEALTH,BLACKPOOL TEACHING HOSPITALS NHS FT,27-Jun-14,NHS SUPPLY CHAIN CATALOGUE ITEMS,MULTI-DIVISIONAL CHARGE,NHS SUPPLY CHAIN,5139252,"108,675.72",NHS SUPPLY CHAIN CATALOGUE ITEMS
DEPARTMENT OF HEALTH,BLACKPOOL TEACHING HOSPITALS NHS FT,13-Jun-14,NHS SUPPLY CHAIN CATALOGUE ITEMS,MULTI-DIVISIONAL CHARGE,NHS SUPPLY CHAIN,5135215,"110,810.88",NHS SUPPLY CHAIN CATALOGUE ITEMS
DEPARTMENT OF HEALTH,BLACKPOOL TEACHING HOSPITALS NHS FT,20-Jun-14,NHS SUPPLY CHAIN CATALOGUE ITEMS,MULTI-DIVISIONAL CHARGE,NHS SUPPLY CHAIN,5136767,"114,895.34",NHS SUPPLY CHAIN CATALOGUE ITEMS
DEPARTMENT OF HEALTH,BLACKPOOL TEACHING HOSPITALS NHS FT,06-Jun-14,NHS SUPPLY CHAIN CATALOGUE ITEMS,MULTI-DIVISIONAL CHARGE,NHS SUPPLY CHAIN,5132835,"116,644.63",NHS SUPPLY CHAIN CATALOGUE ITEMS
